[Event "*** MasterClass Titled Tuesday Blitz"]
[Site "Chess.com"]
[Date "2017.11.07"]
[Round "6"]
[White "pastouche06"]
[Black "ValeriyGrinev"]
[Result "0-1"]
[WhiteElo "2341"]
[BlackElo "2443"]
[TimeControl "180+2"]
[EndTime "15:28:18 PST"]
[Termination "ValeriyGrinev won by resignation"]

1. e4 {[%clk 0:03:01.9]} 1... c5 {[%clk 0:03:00.1]} 2. Nf3 {[%clk 0:03:02.5]}
2... e6 {[%clk 0:03:01.7]} 3. d4 {[%clk 0:03:03.1]} 3... cxd4 {[%clk 0:03:03.6]}
4. Nxd4 {[%clk 0:03:04.7]} 4... a6 {[%clk 0:03:02.8]} 5. Nc3 {[%clk 0:03:04.2]}
5... Qc7 {[%clk 0:03:04]} 6. Be2 {[%clk 0:03:04.3]} 6... b5 {[%clk 0:03:03.7]}
7. a3 {[%clk 0:03:03.8]} 7... Bb7 {[%clk 0:03:04.8]} 8. f4 {[%clk 0:03:04.5]}
8... Nc6 {[%clk 0:03:02.4]} 9. Be3 {[%clk 0:02:57.9]} 9... Na5 {[%clk
0:03:03.1]} 10. O-O {[%clk 0:02:33.9]} 10... Nc4 {[%clk 0:03:03.5]} 11. Bc1
{[%clk 0:02:29.3]} 11... Nxa3 {[%clk 0:02:59.1]} 12. Kh1 {[%clk 0:01:09.2]}
12... Nc4 {[%clk 0:02:59.2]} 13. Qd3 {[%clk 0:00:55.7]} 13... Nf6 {[%clk
0:02:57.4]} 14. Ndxb5 {[%clk 0:00:53.3]} 14... axb5 {[%clk 0:02:58]} 15. Rxa8+
{[%clk 0:00:52.6]} 15... Bxa8 {[%clk 0:02:58.6]} 16. Nxb5 {[%clk 0:00:53.7]}
16... Qc6 {[%clk 0:02:56.6]} 17. Qxc4 {[%clk 0:00:51.2]} 17... Qxc4 {[%clk
0:02:57.7]} 18. Bxc4 {[%clk 0:00:51.9]} 18... Bxe4 {[%clk 0:02:59.6]} 19. c3
{[%clk 0:00:47.2]} 19... Be7 {[%clk 0:02:56.7]} 20. Nc7+ {[%clk 0:00:41]} 20...
Kd8 {[%clk 0:02:57.7]} 21. Nb5 {[%clk 0:00:40.5]} 21... d5 {[%clk 0:02:59.2]}
22. Be2 {[%clk 0:00:40.5]} 22... Kd7 {[%clk 0:03:00.6]} 23. Be3 {[%clk
0:00:38.9]} 23... Rb8 {[%clk 0:03:00.9]} 24. Ra1 {[%clk 0:00:37.6]} 24... Rb7
{[%clk 0:03:01.1]} 25. b4 {[%clk 0:00:36.6]} 25... Ne8 {[%clk 0:03:02.3]} 26.
Ra5 {[%clk 0:00:21]} 26... Bf6 {[%clk 0:03:01.8]} 27. Nd4 {[%clk 0:00:19.1]}
27... Nd6 {[%clk 0:03:01.9]} 28. Ra6 {[%clk 0:00:14.6]} 28... Nc4 {[%clk
0:02:59.5]} 29. Bxc4 {[%clk 0:00:11.5]} 29... dxc4 {[%clk 0:03:01.4]} 30. Ra5
{[%clk 0:00:09.8]} 30... Bd3 {[%clk 0:02:55]} 31. Kg1 {[%clk 0:00:10.8]} 31...
Kd6 {[%clk 0:02:56.3]} 32. Kf2 {[%clk 0:00:12]} 32... e5 {[%clk 0:02:54.4]} 33.
fxe5+ {[%clk 0:00:11.2]} 33... Bxe5 {[%clk 0:02:56.3]} 34. Bd2 {[%clk
0:00:05.7]} 34... f6 {[%clk 0:02:46.8]} 35. Nf3 {[%clk 0:00:06.1]} 35... Rf7
{[%clk 0:02:42.7]} 36. Ra6+ {[%clk 0:00:03.2]} 36... Kd5 {[%clk 0:02:42.1]} 37.
Ke3 {[%clk 0:00:03.4]} 37... Bd6 {[%clk 0:02:36.8]} 38. Ra5+ {[%clk 0:00:02.5]}
38... Kc6 {[%clk 0:02:37.3]} 39. Ra6+ {[%clk 0:00:03.9]} 39... Kd7 {[%clk
0:02:35]} 40. Kf2 {[%clk 0:00:03.3]} 40... Bc7 {[%clk 0:02:32.3]} 41. Nd4 {[%clk
0:00:03.9]} 41... Kc8 {[%clk 0:02:33.6]} 42. Kf3 {[%clk 0:00:04.6]} 42... Kb7
{[%clk 0:02:34.7]} 43. Ra4 {[%clk 0:00:04.6]} 43... Re7 {[%clk 0:02:34.5]} 44.
Be3 {[%clk 0:00:05]} 44... Be4+ {[%clk 0:02:35.6]} 45. Kf2 {[%clk 0:00:05.7]}
45... h5 {[%clk 0:02:36.4]} 46. b5 {[%clk 0:00:05.8]} 46... Bxh2 {[%clk
0:02:36.6]} 47. Rxc4 {[%clk 0:00:05.9]} 47... h4 {[%clk 0:02:35.9]} 48. Ne2
{[%clk 0:00:05.6]} 48... Bd3 {[%clk 0:02:30]} 49. Rd4 {[%clk 0:00:05.2]} 49...
Bxe2 {[%clk 0:02:30.8]} 50. Kxe2 {[%clk 0:00:05.6]} 50... Bg1 {[%clk 0:02:32]}
51. Rd3 {[%clk 0:00:06.4]} 51... f5 {[%clk 0:02:26.8]} 52. Kd2 {[%clk
0:00:07.3]} 52... Bxe3+ {[%clk 0:02:25.9]} 53. Rxe3 {[%clk 0:00:09.2]} 53...
Rd7+ {[%clk 0:02:27.2]} 54. Rd3 {[%clk 0:00:10.2]} 54... Rc7 {[%clk 0:02:28.6]}
55. Rd5 {[%clk 0:00:10.2]} 55... g6 {[%clk 0:02:29.5]} 56. Rd6 {[%clk 0:00:11]}
56... Rg7 {[%clk 0:02:27.9]} 57. c4 {[%clk 0:00:11.3]} 57... g5 {[%clk 0:02:29]}
58. c5 {[%clk 0:00:10.9]} 58... g4 {[%clk 0:02:30.6]} 59. Rh6 {[%clk 0:00:11.4]}
59... h3 {[%clk 0:02:31.5]} 60. gxh3 {[%clk 0:00:11.9]} 60... g3 {[%clk
0:02:33.4]} 61. Re6 {[%clk 0:00:07.2]} 61... g2 {[%clk 0:02:33.9]} 62. Re1
{[%clk 0:00:08.3]} 62... g1=Q {[%clk 0:02:34.5]} 63. Rxg1 {[%clk 0:00:09.7]}
63... Rxg1 {[%clk 0:02:35.9]} 64. Ke3 {[%clk 0:00:11]} 64... Rg3+ {[%clk
0:02:37]} 65. Kf4 {[%clk 0:00:11.9]} 65... Rxh3 {[%clk 0:02:38.9]} 66. Kxf5
{[%clk 0:00:12.9]} 66... Rc3 {[%clk 0:02:40.4]} 67. c6+ {[%clk 0:00:13]} 67...
Kb6 {[%clk 0:02:41.8]} 68. Ke6 {[%clk 0:00:14.9]} 68... Kxb5 {[%clk 0:02:41.5]}
69. c7 {[%clk 0:00:16]} 69... Rxc7 {[%clk 0:02:41.9]} 0-1

[Event "*** MasterClass Titled Tuesday Blitz"]
[Site "Chess.com"]
[Date "2017.11.07"]
[Round "6"]
[White "wonderfultime"]
[Black "Shivagami"]
[Result "1-0"]
[WhiteElo "2752"]
[BlackElo "2067"]
[TimeControl "180+2"]
[EndTime "15:28:26 PST"]
[Termination "wonderfultime won by resignation"]

1. d4 {[%clk 0:03:01.9]} 1... d5 {[%clk 0:02:59.2]} 2. Bf4 {[%clk 0:03:03.1]}
2... Nf6 {[%clk 0:02:56.6]} 3. e3 {[%clk 0:03:04.3]} 3... c5 {[%clk 0:02:57.4]}
4. dxc5 {[%clk 0:03:05.1]} 4... Nc6 {[%clk 0:02:55.1]} 5. Nf3 {[%clk 0:03:05.6]}
5... e6 {[%clk 0:02:53]} 6. Nbd2 {[%clk 0:03:06.5]} 6... Bxc5 {[%clk 0:02:53.2]}
7. Be2 {[%clk 0:03:07.8]} 7... O-O {[%clk 0:02:52.5]} 8. O-O {[%clk 0:03:09]}
8... Bd6 {[%clk 0:02:52.3]} 9. Bg3 {[%clk 0:03:10.2]} 9... Bxg3 {[%clk
0:02:51.6]} 10. hxg3 {[%clk 0:03:12.1]} 10... e5 {[%clk 0:02:50.4]} 11. Nb3
{[%clk 0:03:08.2]} 11... Qe7 {[%clk 0:02:45.2]} 12. c4 {[%clk 0:03:03.7]} 12...
Rd8 {[%clk 0:02:42.1]} 13. cxd5 {[%clk 0:03:04.3]} 13... Nxd5 {[%clk 0:02:41.3]}
14. Qc2 {[%clk 0:03:03.7]} 14... Bg4 {[%clk 0:02:39.2]} 15. Rad1 {[%clk
0:02:26.4]} 15... Ncb4 {[%clk 0:02:34.2]} 16. Qb1 {[%clk 0:02:20.7]} 16... Rac8
{[%clk 0:02:34.1]} 17. a3 {[%clk 0:02:10.4]} 17... Nc6 {[%clk 0:02:28.1]} 18.
Rd2 {[%clk 0:02:11.9]} 18... Nf6 {[%clk 0:02:24.6]} 19. Rfd1 {[%clk 0:02:07.1]}
19... g6 {[%clk 0:02:24.8]} 20. Rxd8+ {[%clk 0:01:49.4]} 20... Rxd8 {[%clk
0:02:26.7]} 21. Qc1 {[%clk 0:01:47.9]} 21... Ne4 {[%clk 0:02:17.3]} 22. Rxd8+
{[%clk 0:01:41.6]} 22... Qxd8 {[%clk 0:02:16.7]} 23. Qc4 {[%clk 0:01:43]} 23...
Nf6 {[%clk 0:02:05.8]} 24. Nc5 {[%clk 0:01:28.5]} 24... Qe7 {[%clk 0:01:46.5]}
25. b4 {[%clk 0:01:15.2]} 25... a6 {[%clk 0:01:17]} 26. Nd2 {[%clk 0:01:08.8]}
26... Bxe2 {[%clk 0:01:14]} 27. Qxe2 {[%clk 0:01:10.7]} 27... a5 {[%clk
0:01:12.6]} 28. Qc4 {[%clk 0:00:52.3]} 28... axb4 {[%clk 0:01:12.7]} 29. axb4
{[%clk 0:00:54.2]} 29... b6 {[%clk 0:01:06.4]} 30. Na6 {[%clk 0:00:46.9]} 30...
Qd6 {[%clk 0:01:04]} 31. Nf1 {[%clk 0:00:47.4]} 31... Kg7 {[%clk 0:00:50.1]} 32.
b5 {[%clk 0:00:47.2]} 32... Na5 {[%clk 0:00:50.5]} 33. Qc3 {[%clk 0:00:44.7]}
33... Nd5 {[%clk 0:00:46.8]} 34. Qd3 {[%clk 0:00:35.7]} 34... Qe6 {[%clk
0:00:36.8]} 35. e4 {[%clk 0:00:35.6]} 35... Ne7 {[%clk 0:00:36]} 36. Qd8 {[%clk
0:00:34.3]} 36... f5 {[%clk 0:00:32.7]} 37. Nc7 {[%clk 0:00:33.5]} 37... Qf7
{[%clk 0:00:28.2]} 38. Ne8+ {[%clk 0:00:34.4]} 38... Kh6 {[%clk 0:00:28.5]} 39.
Nd6 {[%clk 0:00:35.6]} 39... Qf6 {[%clk 0:00:22.1]} 40. exf5 {[%clk 0:00:35.8]}
40... gxf5 {[%clk 0:00:21.1]} 41. Qxe7 {[%clk 0:00:36.7]} 41... Qxe7 {[%clk
0:00:18.4]} 42. Nxf5+ {[%clk 0:00:37.9]} 1-0

[Event "*** MasterClass Titled Tuesday Blitz"]
[Site "Chess.com"]
[Date "2017.11.07"]
[Round "6"]
[White "Cherone"]
[Black "LawrenceTrent"]
[Result "1/2-1/2"]
[WhiteElo "2451"]
[BlackElo "2366"]
[TimeControl "180+2"]
[EndTime "15:28:34 PST"]
[Termination "Game drawn by repetition"]

1. e4 {[%clk 0:03:01.9]} 1... c5 {[%clk 0:03:00.7]} 2. Nf3 {[%clk 0:03:02.9]}
2... d6 {[%clk 0:03:02.1]} 3. Bb5+ {[%clk 0:03:03.9]} 3... Nd7 {[%clk 0:03:03]}
4. O-O {[%clk 0:03:04.3]} 4... a6 {[%clk 0:03:04.1]} 5. Bxd7+ {[%clk 0:03:05.4]}
5... Bxd7 {[%clk 0:03:05.2]} 6. d4 {[%clk 0:03:07.3]} 6... cxd4 {[%clk
0:03:06.6]} 7. Qxd4 {[%clk 0:03:08.8]} 7... Rc8 {[%clk 0:03:08.3]} 8. c4 {[%clk
0:03:08.4]} 8... e5 {[%clk 0:03:06.7]} 9. Qd3 {[%clk 0:03:09.3]} 9... b5 {[%clk
0:03:04.9]} 10. Nfd2 {[%clk 0:03:10.2]} 10... Nf6 {[%clk 0:03:03.9]} 11. Nc3
{[%clk 0:03:10.6]} 11... Be7 {[%clk 0:03:04.9]} 12. b3 {[%clk 0:03:08.3]} 12...
Qb6 {[%clk 0:02:52.4]} 13. a4 {[%clk 0:03:08.7]} 13... bxc4 {[%clk 0:02:49.7]}
14. Nxc4 {[%clk 0:03:09.8]} 14... Qxb3 {[%clk 0:02:47.6]} 15. Nxd6+ {[%clk
0:03:08.9]} 15... Bxd6 {[%clk 0:02:48.4]} 16. Qxd6 {[%clk 0:03:10.4]} 16... Qe6
{[%clk 0:02:33.7]} 17. Qa3 {[%clk 0:02:29.9]} 17... Qe7 {[%clk 0:02:17.3]} 18.
Qxe7+ {[%clk 0:02:10.7]} 18... Kxe7 {[%clk 0:02:19.2]} 19. Ba3+ {[%clk
0:02:11.9]} 19... Ke6 {[%clk 0:02:20.7]} 20. Rac1 {[%clk 0:02:09.2]} 20... Bc6
{[%clk 0:02:02.7]} 21. f3 {[%clk 0:02:03.6]} 21... Rhd8 {[%clk 0:02:03]} 22.
Rfd1 {[%clk 0:01:57.8]} 22... Rd4 {[%clk 0:01:51.6]} 23. Ne2 {[%clk 0:01:51.4]}
23... Rxd1+ {[%clk 0:01:33.7]} 24. Rxd1 {[%clk 0:01:53.2]} 24... Ne8 {[%clk
0:01:35.1]} 25. a5 {[%clk 0:01:45.9]} 25... Bb5 {[%clk 0:01:33]} 26. Ng3 {[%clk
0:01:42.3]} 26... g6 {[%clk 0:01:33.3]} 27. Rd2 {[%clk 0:01:39.1]} 27... f6
{[%clk 0:01:23.5]} 28. Kf2 {[%clk 0:01:38.1]} 28... Rc4 {[%clk 0:01:19.7]} 29.
Ne2 {[%clk 0:01:04.2]} 29... Ra4 {[%clk 0:01:17.5]} 30. Bf8 {[%clk 0:01:05.7]}
30... Bxe2 {[%clk 0:01:14.3]} 31. Kxe2 {[%clk 0:01:07.6]} 31... Rxa5 {[%clk
0:01:15.4]} 32. Rd8 {[%clk 0:01:08.1]} 32... Ra2+ {[%clk 0:01:14.4]} 33. Kf1
{[%clk 0:01:08.9]} 33... Nc7 {[%clk 0:01:11.4]} 34. Rd6+ {[%clk 0:01:03.1]}
34... Kf7 {[%clk 0:01:12.5]} 35. Rd7+ {[%clk 0:01:04.7]} 35... Kxf8 {[%clk
0:01:13.9]} 36. Rxc7 {[%clk 0:01:06.1]} 36... h5 {[%clk 0:01:12.1]} 37. Ra7
{[%clk 0:01:07]} 37... a5 {[%clk 0:01:12.4]} 38. h4 {[%clk 0:01:08]} 38... g5
{[%clk 0:01:13.2]} 39. hxg5 {[%clk 0:01:07.5]} 39... fxg5 {[%clk 0:01:14.2]} 40.
Kg1 {[%clk 0:01:08.5]} 40... a4 {[%clk 0:01:11.4]} 41. Kh2 {[%clk 0:01:03]}
41... a3 {[%clk 0:01:12.2]} 42. Ra5 {[%clk 0:00:59.3]} 42... Ra1 {[%clk
0:01:04.1]} 43. Rxe5 {[%clk 0:00:59.3]} 43... a2 {[%clk 0:01:05.6]} 44. Ra5
{[%clk 0:01:00.3]} 44... Ke7 {[%clk 0:01:06.5]} 45. Ra6 {[%clk 0:01:01.6]} 45...
Kd7 {[%clk 0:01:07.3]} 46. g3 {[%clk 0:00:51.7]} 46... Kc7 {[%clk 0:01:00.5]}
47. f4 {[%clk 0:00:51]} 47... gxf4 {[%clk 0:00:59.5]} 48. gxf4 {[%clk 0:00:52]}
48... Kb7 {[%clk 0:00:59]} 49. Ra3 {[%clk 0:00:51]} 49... Kc6 {[%clk 0:01:00.4]}
50. f5 {[%clk 0:00:50.9]} 50... Kd6 {[%clk 0:00:55.8]} 51. Ra5 {[%clk
0:00:51.5]} 51... Re1 {[%clk 0:00:54.5]} 52. Rxa2 {[%clk 0:00:50.1]} 52... Rxe4
{[%clk 0:00:55.5]} 53. Rf2 {[%clk 0:00:50.6]} 53... Ke7 {[%clk 0:00:53.7]} 54.
f6+ {[%clk 0:00:51.7]} 54... Kf7 {[%clk 0:00:55.3]} 55. Rf5 {[%clk 0:00:52.4]}
55... h4 {[%clk 0:00:53.3]} 56. Kh3 {[%clk 0:00:53.3]} 56... Ra4 {[%clk
0:00:53.1]} 57. Rf3 {[%clk 0:00:52.2]} 57... Rb4 {[%clk 0:00:53.2]} 58. Rf2
{[%clk 0:00:53.1]} 58... Ra4 {[%clk 0:00:54.5]} 59. Rf3 {[%clk 0:00:54.2]} 59...
Rb4 {[%clk 0:00:55.6]} 60. Rf2 {[%clk 0:00:55.3]} 60... Ra4 {[%clk 0:00:57]} 61.
Rf3 {[%clk 0:00:56.5]} 61... Rb4 {[%clk 0:00:58.5]} 62. Rf2 {[%clk 0:00:57.8]}
62... Ra4 {[%clk 0:01:00.1]} 1/2-1/2

[Event "*** MasterClass Titled Tuesday Blitz"]
[Site "Chess.com"]
[Date "2017.11.07"]
[Round "6"]
[White "PositionalGenius"]
[Black "MateusViageiro"]
[Result "0-1"]
[WhiteElo "2408"]
[BlackElo "2272"]
[TimeControl "180+2"]
[EndTime "15:28:35 PST"]
[Termination "MateusViageiro won by resignation"]

1. e4 {[%clk 0:03:01.9]} 1... c5 {[%clk 0:02:59.7]} 2. Nf3 {[%clk 0:03:01.6]}
2... d6 {[%clk 0:03:00.2]} 3. d4 {[%clk 0:03:02.6]} 3... cxd4 {[%clk 0:03:01]}
4. Qxd4 {[%clk 0:03:04.5]} 4... Nc6 {[%clk 0:02:59.8]} 5. Bb5 {[%clk 0:03:05.4]}
5... Bd7 {[%clk 0:03:00.9]} 6. Bxc6 {[%clk 0:03:06.5]} 6... Bxc6 {[%clk
0:03:02]} 7. Nc3 {[%clk 0:03:07.7]} 7... e6 {[%clk 0:03:02.1]} 8. Bg5 {[%clk
0:03:06.5]} 8... Nf6 {[%clk 0:03:01.2]} 9. O-O-O {[%clk 0:03:07.1]} 9... h6
{[%clk 0:03:00.4]} 10. Bh4 {[%clk 0:03:02.8]} 10... Be7 {[%clk 0:02:59.5]} 11.
Rhe1 {[%clk 0:02:59.2]} 11... Qc7 {[%clk 0:02:53.1]} 12. Kb1 {[%clk 0:02:15]}
12... b5 {[%clk 0:02:50.7]} 13. Bxf6 {[%clk 0:01:47.4]} 13... gxf6 {[%clk
0:02:49.9]} 14. Qd2 {[%clk 0:01:35.6]} 14... b4 {[%clk 0:02:46.9]} 15. Ne2
{[%clk 0:01:28.2]} 15... Bxe4 {[%clk 0:02:42.1]} 16. Ned4 {[%clk 0:01:29.5]}
16... d5 {[%clk 0:02:35.5]} 17. Nh4 {[%clk 0:01:15.2]} 17... Rc8 {[%clk
0:02:16.6]} 18. f3 {[%clk 0:01:14]} 18... Bh7 {[%clk 0:02:08.1]} 19. f4 {[%clk
0:00:55.1]} 19... Be4 {[%clk 0:02:04.7]} 20. g4 {[%clk 0:00:48.5]} 20... a5
{[%clk 0:01:49]} 21. Rxe4 {[%clk 0:00:32.2]} 21... dxe4 {[%clk 0:01:49]} 22. Nb5
{[%clk 0:00:32.8]} 22... Qb7 {[%clk 0:01:37.4]} 23. Nd6+ {[%clk 0:00:29]} 23...
Bxd6 {[%clk 0:01:37.4]} 24. Qxd6 {[%clk 0:00:30.8]} 24... Qc7 {[%clk 0:01:31.7]}
25. Qd2 {[%clk 0:00:26.7]} 25... Rd8 {[%clk 0:01:30.5]} 26. Qe2 {[%clk
0:00:23.5]} 26... Rxd1+ {[%clk 0:01:29.5]} 27. Qxd1 {[%clk 0:00:25.4]} 27...
Qxf4 {[%clk 0:01:30.4]} 28. Ng2 {[%clk 0:00:25]} 28... Qf3 {[%clk 0:01:29.5]}
29. Qd2 {[%clk 0:00:21.4]} 29... O-O {[%clk 0:01:18.7]} 30. a4 {[%clk
0:00:16.4]} 30... Qxg4 {[%clk 0:01:16.7]} 31. Ne3 {[%clk 0:00:17]} 31... Qg5
{[%clk 0:01:15.5]} 32. Qf2 {[%clk 0:00:16.5]} 32... f5 {[%clk 0:01:15]} 33. h4
{[%clk 0:00:16.7]} 33... Qg6 {[%clk 0:01:14.1]} 34. Nc4 {[%clk 0:00:17.3]} 34...
Rd8 {[%clk 0:01:06.8]} 35. Ne5 {[%clk 0:00:17.7]} 35... Qf6 {[%clk 0:01:06.2]}
36. Qf4 {[%clk 0:00:17.8]} 36... Kh7 {[%clk 0:01:05.3]} 37. h5 {[%clk
0:00:17.6]} 37... Rd1+ {[%clk 0:01:03]} 38. Ka2 {[%clk 0:00:17.8]} 38... Rd5
{[%clk 0:01:02.8]} 39. Nc4 {[%clk 0:00:16.3]} 39... e5 {[%clk 0:01:02.7]} 40.
Qf2 {[%clk 0:00:16.7]} 40... Qe6 {[%clk 0:01:03.7]} 41. b3 {[%clk 0:00:16.5]}
41... Rd4 {[%clk 0:01:04.8]} 42. Nxa5 {[%clk 0:00:13.8]} 42... f4 {[%clk
0:01:03.7]} 43. Nb7 {[%clk 0:00:10.2]} 43... e3 {[%clk 0:01:03.8]} 44. Qg2
{[%clk 0:00:10.3]} 44... e4 {[%clk 0:01:00.2]} 45. Nc5 {[%clk 0:00:10.2]} 45...
Qd5 {[%clk 0:00:55.3]} 46. Na6 {[%clk 0:00:09.6]} 46... Rd2 {[%clk 0:00:55.8]}
47. Qf1 {[%clk 0:00:05]} 47... Rxc2+ {[%clk 0:00:56.1]} 48. Kb1 {[%clk
0:00:06.5]} 48... Qxb3+ {[%clk 0:00:55.2]} 0-1

[Event "*** MasterClass Titled Tuesday Blitz"]
[Site "Chess.com"]
[Date "2017.11.07"]
[Round "6"]
[White "Koksik_13"]
[Black "aa175"]
[Result "1-0"]
[WhiteElo "2019"]
[BlackElo "1863"]
[TimeControl "180+2"]
[EndTime "15:28:36 PST"]
[Termination "Koksik_13 won by checkmate"]

1. e4 {[%clk 0:03:01.9]} 1... e5 {[%clk 0:02:59.7]} 2. Nf3 {[%clk 0:03:02.8]}
2... Nc6 {[%clk 0:03:00.1]} 3. Nc3 {[%clk 0:03:04.1]} 3... Nf6 {[%clk
0:02:52.1]} 4. Bb5 {[%clk 0:03:05.5]} 4... Bd6 {[%clk 0:02:51.7]} 5. d3 {[%clk
0:03:05.8]} 5... O-O {[%clk 0:02:52.3]} 6. Bg5 {[%clk 0:03:06.9]} 6... a6 {[%clk
0:02:45.1]} 7. Bc4 {[%clk 0:03:07.8]} 7... h6 {[%clk 0:02:43.6]} 8. Bh4 {[%clk
0:03:08.5]} 8... Re8 {[%clk 0:02:42.9]} 9. h3 {[%clk 0:03:09.8]} 9... Be7 {[%clk
0:02:41.9]} 10. Qe2 {[%clk 0:03:10.2]} 10... d6 {[%clk 0:02:35.2]} 11. g4 {[%clk
0:03:10.8]} 11... Nxe4 {[%clk 0:02:26.3]} 12. Bxe7 {[%clk 0:02:56.1]} 12... Nxc3
{[%clk 0:02:26.8]} 13. Bxd8 {[%clk 0:02:49.2]} 13... Nxe2 {[%clk 0:02:27.4]} 14.
Bxc7 {[%clk 0:02:49]} 14... Ned4 {[%clk 0:02:27.1]} 15. Nxd4 {[%clk 0:02:47.6]}
15... Nxd4 {[%clk 0:02:25.2]} 16. O-O-O {[%clk 0:02:43.5]} 16... Be6 {[%clk
0:02:18.3]} 17. Bxd6 {[%clk 0:02:40.9]} 17... Rac8 {[%clk 0:01:36.5]} 18. c3
{[%clk 0:02:32.3]} 18... Bxc4 {[%clk 0:01:31.1]} 19. dxc4 {[%clk 0:02:31.8]}
19... Rxc4 {[%clk 0:01:24]} 20. Rhe1 {[%clk 0:02:33.2]} 20... Nf3 {[%clk
0:01:23.4]} 21. Re3 {[%clk 0:02:33.2]} 21... e4 {[%clk 0:01:08.6]} 22. Bg3
{[%clk 0:02:27.9]} 22... Rec8 {[%clk 0:01:00.7]} 23. Rd7 {[%clk 0:02:19.3]}
23... b5 {[%clk 0:00:49]} 24. a3 {[%clk 0:02:00.9]} 24... a5 {[%clk 0:00:38.3]}
25. Bd6 {[%clk 0:01:53.8]} 25... Nd4 {[%clk 0:00:14.4]} 26. Kb1 {[%clk
0:01:53.2]} 26... Nb3 {[%clk 0:00:14.5]} 27. Be5 {[%clk 0:01:35.1]} 27... b4
{[%clk 0:00:13.2]} 28. g5 {[%clk 0:01:27.8]} 28... bxa3 {[%clk 0:00:09.8]} 29.
gxh6 {[%clk 0:01:25.4]} 29... g6 {[%clk 0:00:11.1]} 30. bxa3 {[%clk 0:01:23]}
30... Nc5 {[%clk 0:00:12.3]} 31. h7+ {[%clk 0:01:16.9]} 31... Kxh7 {[%clk
0:00:13]} 32. Rxf7+ {[%clk 0:01:18.4]} 32... Kg8 {[%clk 0:00:13.2]} 33. Rg7+
{[%clk 0:01:13.7]} 33... Kf8 {[%clk 0:00:14.6]} 34. Rh7 {[%clk 0:01:05.8]} 34...
Nd3 {[%clk 0:00:11.1]} 35. Rg3 {[%clk 0:00:46.2]} 35... Nxe5 {[%clk 0:00:09.7]}
36. Rg5 {[%clk 0:00:43.9]} 36... Rb8+ {[%clk 0:00:09.6]} 37. Kc2 {[%clk
0:00:44.2]} 37... Nd3 {[%clk 0:00:09.3]} 38. Rh8+ {[%clk 0:00:44.2]} 38... Kg7
{[%clk 0:00:10.2]} 39. Rxb8 {[%clk 0:00:45.6]} 39... Kf6 {[%clk 0:00:11.5]} 40.
Rxa5 {[%clk 0:00:45.6]} 40... Nxf2 {[%clk 0:00:12.4]} 41. Rf8+ {[%clk
0:00:43.7]} 41... Kg7 {[%clk 0:00:13.1]} 42. Rxf2 {[%clk 0:00:44.3]} 42... e3
{[%clk 0:00:13.9]} 43. Re2 {[%clk 0:00:45.1]} 43... g5 {[%clk 0:00:15.2]} 44.
Rxe3 {[%clk 0:00:45.8]} 44... Kh8 {[%clk 0:00:16.5]} 45. Re7 {[%clk 0:00:46.5]}
45... Rc8 {[%clk 0:00:16.1]} 46. Raa7 {[%clk 0:00:47.3]} 46... g4 {[%clk
0:00:16.8]} 47. hxg4 {[%clk 0:00:46.6]} 47... Kg8 {[%clk 0:00:17.9]} 48. Rg7+
{[%clk 0:00:47.6]} 48... Kf8 {[%clk 0:00:19.2]} 49. Raf7+ {[%clk 0:00:49.1]}
49... Ke8 {[%clk 0:00:20.2]} 50. g5 {[%clk 0:00:49.8]} 50... Kd8 {[%clk
0:00:20.4]} 51. Rf8# {[%clk 0:00:50.3]} 1-0

[Event "*** MasterClass Titled Tuesday Blitz"]
[Site "Chess.com"]
[Date "2017.11.07"]
[Round "6"]
[White "IamSchrodingersCat"]
[Black "timator"]
[Result "0-1"]
[WhiteElo "2424"]
[BlackElo "2428"]
[TimeControl "180+2"]
[EndTime "15:28:40 PST"]
[Termination "timator won on time"]

1. e4 {[%clk 0:03:01.9]} 1... c5 {[%clk 0:03:01]} 2. Nf3 {[%clk 0:03:02.8]} 2...
Nc6 {[%clk 0:03:02.4]} 3. d4 {[%clk 0:03:04]} 3... cxd4 {[%clk 0:03:04.3]} 4.
Nxd4 {[%clk 0:03:05.5]} 4... Nf6 {[%clk 0:03:05.3]} 5. Nc3 {[%clk 0:03:06.5]}
5... e6 {[%clk 0:03:06.8]} 6. Be3 {[%clk 0:03:06.2]} 6... Bb4 {[%clk 0:03:07.9]}
7. Bd3 {[%clk 0:03:06.7]} 7... d5 {[%clk 0:03:05.1]} 8. exd5 {[%clk 0:03:08]}
8... Nxd5 {[%clk 0:03:05.6]} 9. Nxc6 {[%clk 0:03:09.5]} 9... bxc6 {[%clk
0:03:06.7]} 10. Bd2 {[%clk 0:03:10.7]} 10... Bxc3 {[%clk 0:02:53.7]} 11. bxc3
{[%clk 0:03:05.6]} 11... Qf6 {[%clk 0:02:54.4]} 12. O-O {[%clk 0:02:34.9]} 12...
O-O {[%clk 0:02:48.3]} 13. Qh5 {[%clk 0:02:25.8]} 13... h6 {[%clk 0:02:44.2]}
14. c4 {[%clk 0:02:22.1]} 14... Nf4 {[%clk 0:02:45.1]} 15. Qf3 {[%clk
0:01:52.8]} 15... Nxd3 {[%clk 0:02:36.1]} 16. Qxf6 {[%clk 0:01:53.1]} 16... gxf6
{[%clk 0:02:34.8]} 17. cxd3 {[%clk 0:01:55]} 17... Kg7 {[%clk 0:02:35.6]} 18.
Bc3 {[%clk 0:01:51.4]} 18... Rd8 {[%clk 0:02:34.4]} 19. Rfd1 {[%clk 0:01:47.3]}
19... Ba6 {[%clk 0:02:34.8]} 20. f4 {[%clk 0:01:34.8]} 20... Rd7 {[%clk
0:02:35.8]} 21. Kf2 {[%clk 0:01:35.9]} 21... Rad8 {[%clk 0:02:36.3]} 22. Ke2
{[%clk 0:01:37.2]} 22... Kg6 {[%clk 0:02:34.2]} 23. Rd2 {[%clk 0:01:31.6]} 23...
e5 {[%clk 0:02:33.5]} 24. fxe5 {[%clk 0:00:57]} 24... fxe5 {[%clk 0:02:33.1]}
25. Ke3 {[%clk 0:00:54.5]} 25... e4 {[%clk 0:02:15.7]} 26. dxe4 {[%clk
0:00:51.4]} 26... Bxc4 {[%clk 0:02:14.9]} 27. Rxd7 {[%clk 0:00:50.4]} 27... Rxd7
{[%clk 0:02:15.1]} 28. Bd4 {[%clk 0:00:51.5]} 28... f5 {[%clk 0:02:01.6]} 29.
Rc1 {[%clk 0:00:44.7]} 29... f4+ {[%clk 0:02:00.9]} 30. Kxf4 {[%clk 0:00:42.8]}
30... Rxd4 {[%clk 0:02:01]} 31. Ke5 {[%clk 0:00:39]} 31... c5 {[%clk 0:02:02.2]}
32. a3 {[%clk 0:00:30.1]} 32... Bd3 {[%clk 0:01:48]} 33. Rxc5 {[%clk 0:00:32]}
33... Rxe4+ {[%clk 0:01:49.2]} 34. Kd5 {[%clk 0:00:28.6]} 34... Ra4 {[%clk
0:01:47.5]} 35. Rc3 {[%clk 0:00:25.5]} 35... Bf5 {[%clk 0:01:36.3]} 36. Ke5
{[%clk 0:00:21.2]} 36... Ra5+ {[%clk 0:01:27.7]} 37. Kf4 {[%clk 0:00:21]} 37...
Be6 {[%clk 0:01:28.2]} 38. h3 {[%clk 0:00:19.4]} 38... Kf6 {[%clk 0:01:29.5]}
39. g4 {[%clk 0:00:20.3]} 39... Ra4+ {[%clk 0:01:29.9]} 40. Kg3 {[%clk
0:00:19.4]} 40... Rc4 {[%clk 0:01:30.5]} 41. Rf3+ {[%clk 0:00:16.9]} 41... Kg6
{[%clk 0:01:28.6]} 42. Re3 {[%clk 0:00:17.1]} 42... Rc6 {[%clk 0:01:29.6]} 43.
h4 {[%clk 0:00:14.6]} 43... Rb6 {[%clk 0:01:30.1]} 44. h5+ {[%clk 0:00:08.2]}
44... Kf6 {[%clk 0:01:29.1]} 45. Kh4 {[%clk 0:00:04.2]} 45... Rb3 {[%clk
0:01:25]} 46. Re1 {[%clk 0:00:04.7]} 46... Rxa3 {[%clk 0:01:24.7]} 47. Rf1+
{[%clk 0:00:05.9]} 47... Kg7 {[%clk 0:01:25.9]} 48. Rb1 {[%clk 0:00:06.3]} 48...
Ra4 {[%clk 0:01:19.9]} 49. Rb7+ {[%clk 0:00:07.4]} 49... Kf6 {[%clk 0:01:21.1]}
50. Kh3 {[%clk 0:00:04.6]} 50... Rxg4 {[%clk 0:01:19.4]} 51. Kh2 {[%clk
0:00:05.4]} 51... Rh4+ {[%clk 0:01:14.2]} 52. Kg3 {[%clk 0:00:05.6]} 52... Rh3+
{[%clk 0:01:15.4]} 53. Kf4 {[%clk 0:00:06.2]} 53... a5 {[%clk 0:01:15.5]} 54.
Rb5 {[%clk 0:00:04.5]} 54... Rh4+ {[%clk 0:01:15.7]} 55. Kg3 {[%clk 0:00:04.1]}
55... Ra4 {[%clk 0:01:16.9]} 56. Rb6 {[%clk 0:00:03.9]} 56... Ra1 {[%clk
0:01:17.5]} 57. Kf4 {[%clk 0:00:04.6]} 57... a4 {[%clk 0:01:19]} 0-1